bitfinex-derivatives/quotes_BTCF0:USTF0_20210404
["timestamp","ask_amount","ask_price","bid_price","bid_amount"]
[1617561793406,0.82007546,58123.0,58122.0,0.27]
[1617561793605,0.82007546,58123.0,58121.0,0.36224599]
[1617561794003,0.82007546,58123.0,58122.0,0.27]
[1617561794204,0.52023662,58123.0,58122.0,0.27]
[1617561794504,0.46038838,58123.0,58122.0,0.69287227]
[1617561794905,0.46038838,58123.0,58122.0,0.42287227]
[1617561795105,0.8203659,58123.0,58122.0,0.68287227]
[1617561795304,0.66016114,58123.0,58122.0,0.62224573]
[1617561795705,0.66016114,58123.0,58122.0,0.68287215]
[1617561798208,0.3600788,58123.0,58122.0,0.68287215]
[1617561798411,0.81713146,58123.0,58122.0,0.68287215]
[1617561798816,0.66037026,58123.0,58122.0,0.32062642]
[1617561799209,0.3600788,58123.0,58122.0,0.32062642]
[1617561799410,0.81704001,58123.0,58122.0,0.32062642]
[1617561799610,0.94463001,58123.0,58122.0,0.32062642]
[1617561799813,0.78789956,58123.0,58122.0,0.32062642]
[1617561800311,0.94465577,58123.0,58122.0,0.32062642]
[1617561801614,2.44465577,58123.0,58122.0,0.32062642]
[1617561801915,3.44465577,58123.0,58122.0,0.32062642]
[1617561802317,3.44465577,58123.0,58122.0,0.26]
[1617561802716,3.44465577,58123.0,58120.0,0.01]
[1617561802916,2.7103,58121.0,58120.0,0.01]
[1617561803117,3.47801935,58121.0,58119.0,0.36234781]
[1617561803317,3.47801935,58121.0,58120.0,0.27]
[1617561803516,2.81755655,58121.0,58120.0,0.27]
[1617561803918,3.17776475,58121.0,58119.0,0.01]
[1617561804118,3.47795492,58121.0,58119.0,0.01]
[1617561804519,0.81661299,58120.0,58119.0,0.01]
[1617561804719,0.81661299,58120.0,58118.0,0.63235569]
[1617561805121,0.81661299,58120.0,58119.0,0.01]
[1617561805322,0.15624898,58120.0,58119.0,0.37266779]
[1617561805721,0.81718347,58120.0,58119.0,0.36266779]
[1617561806122,0.81718347,58120.0,58119.0,0.38266779]
[1617561806722,0.81718347,58120.0,58119.0,0.4433006]
[1617561807122,0.10725655,58121.0,58120.0,3.0874]
[1617561807424,0.10725655,58121.0,58120.0,3.3574]
[1617561807823,0.76826115,58121.0,58120.0,3.78068624]
[1617561808023,0.10725655,58121.0,58120.0,3.78068624]
[1617561808425,0.76795083,58121.0,58120.0,3.78068624]
[1617561809123,0.46762615,58121.0,58120.0,3.78068624]
[1617561809324,0.92426276,58121.0,58120.0,3.78068624]
[1617561809625,0.76794049,58121.0,58120.0,3.78068624]
[1617561810028,0.92432085,58121.0,58120.0,3.78068624]
[1617561812529,0.92432085,58121.0,58120.0,0.69328624]
[1617561812928,3.48532085,58121.0,58120.0,0.69328624]
[1617561813328,3.59961085,58121.0,58120.0,0.69328624]
[1617561816133,4.59961085,58121.0,58120.0,0.33063073]
[1617561818537,3.78254655,58121.0,58120.0,0.33063073]
[1617561818737,3.44347477,58121.0,58120.0,0.33063073]
[1617561818937,3.32918477,58121.0,58120.0,0.33063073]
[1617561819338,3.32918477,58121.0,58120.0,0.69328654]
[1617561819839,3.32918477,58121.0,58120.0,0.33063073]
[1617561820541,3.32918477,58121.0,58120.0,0.69328493]
[1617561825649,3.76973342,58121.0,58120.0,0.27]
[1617561827751,3.91588342,58121.0,58120.0,0.6334554]
[1617561830154,5.41588342,58121.0,58120.0,0.6334554]
[1617561830354,6.41588342,58121.0,58120.0,0.6334554]
[1617561830759,6.91727517,58121.0,58120.0,0.27]
[1617561830954,6.91727517,58121.0,58120.0,0.2611]
[1617561831154,7.97787439,58121.0,58119.0,0.01]
[1617561831355,0.2,58120.0,58119.0,0.01]
[1617561831554,1.5,58120.0,58112.0,0.3635015]
[1617561831753,1.5,58120.0,58119.0,0.27]
[1617561831754,5.26767692,58120.0,58119.0,0.27]
[1617561831953,5.26767692,58120.0,58119.0,0.26]
[1617561832153,3.60653257,58120.0,58113.0,0.01]
[1617561832355,0.66094703,58114.0,58110.0,0.27]
[1617561832555,1.5,58113.0,58110.0,0.2194]
[1617561832754,1.5,58113.0,58109.0,0.26]
[1617561832954,1.5,58113.0,58107.0,0.36353171]
[1617561832955,4.68790836,58110.0,58104.0,0.42354662]
[1617561833158,1.64126,58109.0,58104.0,0.36354662]
[1617561833357,0.10725655,58105.0,58104.0,0.24424662]
[1617561833562,2.60725655,58105.0,58098.0,0.13]
[1617561833773,2.60725655,58105.0,58096.0,0.44434605]
[1617561833966,0.736803,58099.0,58095.0,0.02]
[1617561834158,1.5,58098.0,58097.0,0.06]
[1617561834357,1.5,58098.0,58097.0,0.0508]
[1617561834555,1.5,58098.0,58084.0,0.2]
[1617561834556,2.5,58098.0,58096.0,0.02]
[1617561834757,4.34028939,58098.0,58097.0,0.06]
[1617561835158,7.25648939,58098.0,58085.0,0.19]
[1617561835355,7.25648939,58098.0,58078.0,0.07]
[1617561835356,0.10725655,58086.0,58078.0,0.07]
[1617561835556,1.66285,58085.0,58072.0,0.27]
[1617561835763,2.9048,58079.0,58071.0,0.18]
[1617561835973,1.5,58078.0,58070.0,0.44265765]
[1617561836173,1.14728,58072.0,58071.0,0.27]
[1617561836559,1.14728,58072.0,58066.0,0.44266818]
[1617561836560,3.73908,58072.0,58066.0,0.44266818]
[1617561836858,3.73908,58072.0,58071.0,0.01]
[1617561837259,3.84633655,58072.0,58066.0,0.50334052]
[1617561837460,3.84633655,58072.0,58071.0,0.33067246]
[1617561837859,3.84633655,58072.0,58067.0,0.01]
[1617561837860,2.84633655,58072.0,58067.0,0.07067238]
[1617561838059,0.25453655,58072.0,58071.0,0.27]
[1617561838259,0.25453655,58072.0,58071.0,0.33067238]
[1617561838461,0.25453655,58072.0,58071.0,0.06067238]
[1617561838659,1.75453655,58072.0,58071.0,0.33067238]
[1617561839059,2.75453655,58072.0,58071.0,0.33067238]
[1617561839260,2.76455839,58072.0,58071.0,0.27]
[1617561839660,3.05217538,58072.0,58064.0,0.01]
[1617561840060,3.05217538,58072.0,58071.0,0.27]
[1617561840263,3.05217538,58072.0,58065.0,0.01]
[1617561840264,2.05217538,58072.0,58065.0,0.01]
[1617561840461,6.02077538,58072.0,58065.0,0.01]
[1617561840660,6.02077538,58072.0,58071.0,0.26]
[1617561840860,5.02077538,58072.0,58062.0,0.27]
[1617561841063,5.02077538,58072.0,58066.0,0.01]
[1617561841260,5.02077538,58072.0,58071.0,0.01]
[1617561841461,1.29746671,58067.0,58057.0,0.44253197]
[1617561841862,1.0,58064.0,58059.0,0.27]
[1617561842063,1.0,58064.0,58058.0,0.27]
[1617561842266,1.0,58064.0,58057.0,0.44253197]
[1617561842464,0.01001217,58066.0,58060.0,0.33067863]
[1617561842666,0.01001217,58066.0,58060.0,0.06067863]
[1617561842867,0.01001462,58067.0,58059.0,0.4425242]
[1617561843068,0.01001462,58067.0,58061.0,0.27]
[1617561843267,3.13215655,58062.0,58058.0,0.27]
[1617561843466,1.0,58061.0,58057.0,0.44252382]
[1617561843668,3.13215655,58062.0,58060.0,0.27]
[1617561844066,3.13215655,58062.0,58059.0,0.06067957]
[1617561844267,3.13215655,58062.0,58058.0,0.27]
[1617561844268,3.13215655,58062.0,58061.0,0.33067941]
[1617561844668,3.13215655,58062.0,58060.0,0.01]
[1617561844867,3.13215655,58062.0,58061.0,0.26]
[1617561845072,3.13215655,58062.0,58053.0,0.035]
[1617561845269,3.13215655,58062.0,58059.0,0.01]
[1617561845468,3.0249,58062.0,58061.0,0.26]
[1617561845668,3.0249,58062.0,58058.0,0.10725655]
[1617561845869,3.0249,58062.0,58060.0,0.01]
[1617561846270,3.0249,58062.0,58059.0,0.27]
[1617561846469,3.0249,58062.0,58061.0,0.27]
[1617561846868,3.0249,58062.0,58059.0,0.27]
[1617561847268,3.0249,58062.0,58061.0,0.27]
[1617561847469,3.13215655,58062.0,58058.0,0.10725655]
[1617561847669,3.13215655,58062.0,58059.0,0.27]
[1617561847871,3.13215655,58062.0,58061.0,0.27]
[1617561848070,3.13215655,58062.0,58054.0,0.01]
[1617561848470,3.13215655,58062.0,58061.0,0.27]
[1617561848673,4.13215655,58062.0,58061.0,0.27]
[1617561848874,4.13215655,58062.0,58054.0,0.27]
[1617561849072,3.13215655,58062.0,58061.0,0.27]
[1617561849273,3.13215655,58062.0,58053.0,0.035]
[1617561849473,3.0249,58062.0,58055.0,0.10725655]
[1617561849874,3.0249,58062.0,58056.0,0.27]
[1617561851775,3.0249,58062.0,58052.0,0.035]
[1617561851974,0.10725655,58057.0,58055.0,0.10725655]
[1617561852374,0.10725655,58057.0,58056.0,0.26]
[1617561853175,0.10725655,58057.0,58056.0,3.7835]
[1617561853375,0.10725655,58057.0,58056.0,0.26]
[1617561853575,3.79215655,58057.0,58056.0,0.26]
[1617561855677,4.79215655,58057.0,58056.0,0.26]
[1617561855877,4.79215655,58057.0,58052.0,0.035]
[1617561855878,4.79215655,58057.0,58053.0,0.27]
[1617561855879,4.92783655,58057.0,58053.0,0.27]
[1617561856077,3.92783655,58057.0,58053.0,0.27]
[1617561856277,3.92783655,58057.0,58056.0,0.27]
[1617561856476,3.92783655,58057.0,58053.0,0.27]
[1617561856876,3.92783655,58057.0,58056.0,0.27]
[1617561857076,3.92783655,58057.0,58053.0,0.27]
[1617561863383,0.24293655,58057.0,58053.0,0.27]
[1617561863583,3.3589,58054.0,58053.0,0.27]
[1617561876587,0.10725655,58057.0,58053.0,0.27]
[1617561876990,4.4813,58054.0,58053.0,0.27]
[1617561877190,6.12799,58054.0,58053.0,0.27]
[1617561878502,5.12799,58054.0,58053.0,0.27]
[1617561878693,6.12799,58054.0,58053.0,0.27]
[1617561879291,5.12799,58054.0,58053.0,0.27]
[1617561879493,6.12799,58054.0,58053.0,0.27]
[1617561880392,5.13791722,58054.0,58052.0,0.035]
[1617561880591,6.13791722,58054.0,58053.0,0.27]
[1617561880992,5.48181827,58054.0,58028.0,0.27]
[1617561881191,6.48181827,58054.0,58028.0,0.27]
[1617561881391,6.48181827,58054.0,58053.0,0.27]
[1617561881392,6.77670923,58054.0,58053.0,0.27]
[1617561881591,1.0,58032.0,58029.0,0.27]
[1617561881993,3.3514,58024.0,58023.0,0.11725655]
[1617561882391,3.3514,58024.0,58023.0,0.10725655]
[1617561882593,3.3514,58024.0,58023.0,0.37725655]
[1617561882792,3.3514,58024.0,58023.0,0.7389025]
[1617561883194,3.3514,58024.0,58023.0,0.63164595]
[1617561883393,4.8514,58024.0,58023.0,0.63164595]
[1617561883595,5.8514,58024.0,58023.0,0.63164595]
[1617561883794,5.8514,58024.0,58023.0,0.27]
[1617561883994,5.95865655,58024.0,58023.0,0.27]
[1617561884194,6.25396088,58024.0,58022.0,0.27]
[1617561884594,6.25396088,58024.0,58023.0,0.0001]
[1617561884595,5.25396088,58024.0,58023.0,0.0001]
[1617561884795,5.25396088,58024.0,58017.0,0.01]
[1617561884994,4.95865655,58024.0,58023.0,0.27]
[1617561885396,1.0,58018.0,58017.0,0.27]
[1617561885597,1.61579,58018.0,58002.0,0.0017]
[1617561885996,1.61579,58018.0,58017.0,0.2389]
[1617561886198,1.61579,58018.0,58006.0,0.27]
[1617561886397,5.0,58017.0,58002.0,0.0017]
[1617561886598,1.5,58016.0,58007.0,0.26]
[1617561886797,1.5,58016.0,58007.0,0.2211]
[1617561886997,1.0,58008.0,58003.0,0.01]
[1617561887199,1.5,58007.0,58002.0,0.0017]
[1617561887598,1.5,58007.0,58003.0,0.27]
[1617561887799,2.7829,58004.0,58002.0,0.0017]
[1617561887998,2.7829,58004.0,57977.0,0.35881345]
[1617561887999,2.5,58003.0,57977.0,0.35881345]
[1617561888199,2.60725655,58003.0,57968.0,0.95089803]
[1617561888398,2.60725655,58003.0,57981.0,0.27]
[1617561888798,2.80532,57982.0,57981.0,0.27]
[1617561889401,3.80532,57982.0,57981.0,0.27]
[1617561890200,3.91257655,57982.0,57981.0,0.27]
[1617561892712,1.24367655,57982.0,57981.0,0.27]
[1617561893346,0.10725655,57982.0,57981.0,0.27]
[1617561894104,0.10725655,57982.0,57981.0,0.37725655]
[1617561894303,0.10725655,57982.0,57981.0,0.48138655]
[1617561894906,2.6962,57990.0,57981.0,0.48138655]
[1617561895111,1.0,58002.0,57981.0,0.68138655]
[1617561895308,0.00204818,58007.0,57987.0,0.2]
[1617561895710,0.0512,58006.0,57988.0,0.3214]
[1617561896111,0.0512,58006.0,57993.0,0.10725655]
[1617561896310,0.0512,58006.0,57994.0,0.0519]
[1617561896511,1.0,58004.0,57994.0,0.43362]
[1617561896712,0.051,58003.0,57994.0,0.43362]
[1617561897312,1.0,57996.0,57994.0,0.43362]
[1617561897511,1.0,57996.0,57994.0,0.3219]
[1617561897714,3.063,57995.0,57994.0,0.3219]
[1617561898111,3.17025655,57995.0,57994.0,0.3219]
[1617561898312,3.17025655,57995.0,57994.0,0.27]
[1617561898511,4.17025655,57995.0,57994.0,0.27]
[1617561898712,4.17025655,57995.0,57982.0,0.27]
[1617561899114,4.17025655,57995.0,57994.0,0.27]
[1617561899314,1.0,57993.0,57982.0,0.27]
[1617561899716,1.0,57992.0,57980.0,0.34]
[1617561899916,1.0,57993.0,57983.0,0.27]
[1617561900115,0.10725655,57984.0,57983.0,0.27]
[1617561900317,0.10725655,57984.0,57980.0,0.2]
[1617561900515,0.10725655,57984.0,57983.0,0.27]
[1617561900715,0.10725655,57984.0,57983.0,0.43088]
[1617561900916,0.10725655,57984.0,57983.0,0.16088]
[1617561901116,0.10725655,57984.0,57983.0,0.43088]
[1617561901318,0.10725655,57984.0,57983.0,0.63088]
[1617561901916,0.10725655,57984.0,57983.0,1.63088]
[1617561902118,0.10725655,57984.0,57983.0,1.73813655]
[1617561902919,2.5218,58010.0,57983.0,1.73813655]
[1617561903317,2.5218,58010.0,57993.0,0.2]
[1617561903718,2.5218,58010.0,57994.0,0.27]
[1617561903919,1.0,58012.0,57994.0,0.27]
[1617561904118,1.0,58012.0,58011.0,0.10725655]
[1617561904318,0.00204055,58027.0,58011.0,0.25864655]
[1617561904520,0.00203942,58031.0,58011.0,0.26864655]
[1617561904919,1.0,58027.0,58011.0,0.26864655]
[1617561905118,1.5,58026.0,58011.0,0.26864655]
[1617561905319,1.0,58023.0,58011.0,0.01]
[1617561905521,4.20465,58012.0,57978.0,0.357587]
[1617561905719,4.20465,58012.0,57966.0,3.0752]
[1617561905720,1.5,58011.0,57970.0,0.35763018]
[1617561905919,1.5,58011.0,57995.0,0.27]
[1617561906119,0.10725655,57996.0,57995.0,0.27]
[1617561906318,0.10725655,57996.0,57978.0,0.10725655]
[1617561906518,2.7853,57986.0,57978.0,0.10725655]
[1617561906719,2.7853,57986.0,57985.0,0.27]
[1617561908122,2.89255655,57986.0,57985.0,0.27]
[1617561908319,0.10725655,57986.0,57985.0,0.27]
[1617561909019,0.10725655,57986.0,57985.0,0.47]
[1617561909620,0.10725655,57986.0,57985.0,1.47]
[1617561910822,3.5551,58001.0,57987.0,0.2]
[1617561911222,3.5551,58001.0,57989.0,0.2]
[1617561911624,3.5551,58001.0,57990.0,0.01]
[1617561912324,3.5551,58001.0,57998.0,0.10725655]
[1617561912524,1.0,58015.0,57998.0,0.25961655]
[1617561912738,1.0,58015.0,57999.0,0.27]
[1617561912932,3.0652,58021.0,57999.0,0.47]
[1617561913532,3.0652,58021.0,58005.0,1.0]
[1617561913726,3.0652,58021.0,58006.0,0.2]
[1617561913929,3.0652,58021.0,58006.0,0.47]
[1617561914326,3.0652,58021.0,58013.0,0.10725655]
[1617561914756,4.0652,58021.0,58014.0,0.27]
[1617561915133,3.0652,58021.0,58014.0,0.27]
[1617561916026,4.0652,58021.0,58014.0,0.27]
[1617561916227,0.10725655,58015.0,58014.0,0.27]
[1617561916426,1.10725655,58015.0,58014.0,0.27]
[1617561916627,0.10725655,58015.0,58014.0,0.27]
[1617561916826,0.10725655,58015.0,58007.0,0.27]
[1617561917227,0.10725655,58015.0,58014.0,0.26]
[1617561917427,0.10725655,58015.0,57987.0,1.01]
[1617561917428,3.09775655,58015.0,57991.0,0.47]
[1617561917827,3.09775655,58015.0,58014.0,0.26]
[1617561918027,3.09775655,58015.0,57991.0,1.2]
[1617561918028,3.09775655,58015.0,58012.0,0.13456]
[1617561918430,3.09775655,58015.0,58014.0,0.25]
[1617561918630,3.09775655,58015.0,58013.0,0.03]
[1617561918829,3.09775655,58015.0,58012.0,0.13456]
[1617561919029,3.09775655,58015.0,58014.0,0.27]
[1617561919230,3.09775655,58015.0,58012.0,0.13456]
[1617561919231,3.09775655,58015.0,58013.0,0.27]
[1617561919832,3.09775655,58015.0,58014.0,0.2]
[1617561920131,3.09775655,58015.0,58013.0,0.27]
[1617561920332,3.09775655,58015.0,58014.0,0.27]
[1617561920531,3.09775655,58015.0,58013.0,0.27]
[1617561920931,3.09775655,58015.0,58014.0,0.27]
[1617561921131,3.09775655,58015.0,58013.0,0.27]
[1617561921431,3.09775655,58015.0,58014.0,0.27]
[1617561921833,3.09775655,58015.0,58013.0,0.27]
[1617561922234,3.09775655,58015.0,58014.0,0.27]
[1617561922435,3.09775655,58015.0,58013.0,0.27]
[1617561924339,3.09775655,58015.0,58004.0,0.2]
[1617561924739,3.09775655,58015.0,58014.0,0.27]
[1617561924941,3.09775655,58015.0,58008.0,0.16564]
[1617561925139,3.09775655,58015.0,58009.0,0.27]
[1617561925339,3.09775655,58015.0,58014.0,0.26]
[1617561925540,3.09775655,58015.0,58008.0,0.16564]
[1617561925739,3.09775655,58015.0,58009.0,0.27]
[1617561925941,3.09775655,58015.0,58014.0,0.27]
[1617561926139,3.09775655,58015.0,58005.0,0.01]
[1617561926340,0.10725655,58006.0,58005.0,0.01]
[1617561927741,2.9905,58015.0,58005.0,0.01]
[1617561928344,2.9905,58015.0,58014.0,0.30725655]
[1617561928543,0.00205183,58026.0,58014.0,0.43399655]
[1617561928743,3.354,58024.0,58014.0,0.70399655]
[1617561929944,3.354,58024.0,58014.0,0.50399655]
[1617561930343,0.10725655,58015.0,58014.0,0.50399655]
[1617561934852,0.10725655,58015.0,58014.0,0.70399655]
[1617561935251,0.10725655,58015.0,58014.0,1.70399655]
[1617561935453,0.10932903,58015.0,58014.0,2.06655194]
[1617561935854,0.10725655,58015.0,58014.0,2.50966426]
[1617561936753,0.10725655,58015.0,58014.0,2.60075004]
[1617561940257,0.10725655,58015.0,58014.0,3.10422086]
[1617561940856,0.10725655,58015.0,58014.0,2.10422086]
[1617561941057,0.10725655,58015.0,58014.0,1.60075004]
[1617561941557,0.10725655,58015.0,58014.0,1.50966426]
[1617561941757,0.10725655,58015.0,58014.0,1.30966426]
[1617561942756,0.10725655,58015.0,58014.0,1.06655194]
[1617561943962,0.10725655,58015.0,58014.0,0.70399655]
[1617561945363,0.10725655,58015.0,58014.0,1.06627169]
[1617561945764,0.10725655,58015.0,58014.0,2.06627169]
[1617561946165,0.10725655,58015.0,58014.0,1.60009539]
[1617561946364,0.10725655,58015.0,58014.0,1.40009539]
[1617561946566,0.10725655,58015.0,58014.0,2.60009539]
[1617561947167,0.10725655,58015.0,58014.0,2.06627169]
[1617561947766,0.10725655,58015.0,58014.0,1.06627169]
[1617561948168,0.10725655,58015.0,58014.0,0.86627169]
[1617561948369,2.61075655,58015.0,58014.0,0.63227514]
[1617561948569,2.61075655,58015.0,58014.0,0.27]
[1617561948969,2.61075655,58015.0,58013.0,0.01]
[1617561949172,2.6206972,58015.0,58013.0,0.01]
[1617561949370,2.6206972,58015.0,58014.0,0.27]
[1617561949570,2.61075655,58015.0,58008.0,0.27]
[1617561949970,2.90601495,58015.0,58006.0,0.27]
[1617561950169,2.90601495,58015.0,58009.0,0.27]
[1617561950370,0.00206599,58010.0,58009.0,0.27]
[1617561950569,0.14426599,58010.0,58007.0,0.27]
[1617561950771,0.1472167,58010.0,58009.0,0.01]
[1617561951170,0.00206559,58009.0,58008.0,0.01]
[1617561951471,0.00206559,58009.0,58006.0,0.27]
[1617561951872,0.00206559,58009.0,58008.0,0.01]
[1617561952071,0.00206559,58009.0,58007.0,0.26]
[1617561952474,0.00206559,58009.0,58002.0,0.36211147]
[1617561952475,0.00501432,58009.0,58008.0,0.02]
[1617561952672,0.00501432,58009.0,58003.0,0.25]
[1617561952873,0.29492354,58009.0,58003.0,0.25]
[1617561953072,0.29492354,58009.0,58008.0,0.02]
[1617561953271,0.29492354,58009.0,58004.0,0.01]
[1617561953473,0.2947531,58007.0,58004.0,0.01]
[1617561953673,0.2947531,58007.0,57998.0,0.10725655]
[1617561953873,0.29468301,58006.0,58001.0,0.27]
[1617561954073,0.29468301,58006.0,58005.0,0.26]
[1617561954281,0.29468301,58006.0,57998.0,0.10725655]
[1617561954474,0.10725655,57999.0,57998.0,0.10725655]
[1617561954875,0.10725655,57999.0,57998.0,0.36725655]
[1617561956377,0.10725655,57999.0,57998.0,0.26]
[1617561957178,0.10725655,57999.0,57994.0,0.4517]
[1617561957179,0.10931931,57999.0,57997.0,0.02]
[1617561957579,0.11226512,57999.0,57998.0,0.26]
[1617561957779,0.11226512,57999.0,57996.0,0.26]
[1617561958083,0.40227953,57999.0,57998.0,0.27]
[1617561958481,0.00992979,57998.0,57997.0,0.26]
[1617561958687,0.16643979,57998.0,57996.0,0.02]
[1617561958881,0.16643979,57998.0,57995.0,0.36274594]
[1617561959085,0.16643979,57998.0,57997.0,0.27]
[1617561959289,0.00501545,57997.0,57996.0,0.63274715]
[1617561959494,0.00501545,57997.0,57996.0,0.36274715]
[1617561959883,0.16152582,57998.0,57996.0,0.69348786]
[1617561960282,0.16152582,57998.0,57997.0,0.36274544]
[1617561960683,0.16152582,57998.0,57997.0,0.69348615]
[1617561960885,0.00501582,57998.0,57997.0,0.69348615]
[1617561961885,0.11227288,57999.0,57997.0,0.69348615]
[1617561962184,0.10725655,57999.0,57998.0,0.42349441]
[1617561962383,0.10725655,57999.0,57998.0,0.53075096]
[1617561962584,0.10725655,57999.0,57998.0,0.80075096]
[1617561963185,0.00206771,58003.0,57998.0,1.24410557]
[1617561963383,0.00206771,58003.0,58002.0,0.2]
[1617561963785,0.00206921,58004.0,58002.0,0.47]
[1617561964190,0.00207096,58007.0,58004.0,0.2]
[1617561964385,0.00207096,58007.0,58004.0,1.2]
[1617561964585,0.00207096,58007.0,58006.0,0.66997472]
[1617561964784,0.00207096,58007.0,58006.0,1.66997472]
[1617561964985,0.00207193,58009.0,58007.0,1.0]
[1617561965386,0.00503182,58010.0,58007.0,1.0]
[1617561965387,0.00207212,58010.0,58008.0,0.63271018]
[1617561965585,0.00207212,58010.0,58009.0,0.2]
[1617561965787,0.00207212,58010.0,58009.0,0.62344068]
[1617561965985,0.00207212,58010.0,58009.0,0.89344068]
[1617561966191,0.00207177,58011.0,58009.0,1.89344068]
[1617561966586,0.00207177,58011.0,58010.0,1.2]
[1617561966788,0.10932971,58016.0,58010.0,2.06665419]
[1617561966988,0.10932971,58016.0,58010.0,2.33665419]
[1617561967187,0.10725655,58016.0,58011.0,1.0]
[1617561967587,0.10725655,58016.0,58015.0,0.3626721]
[1617561968090,0.11229041,58016.0,58015.0,0.7502521]
[1617561968487,0.00207355,58017.0,58015.0,0.91823558]
[1617561968888,0.00207397,58018.0,58016.0,0.42337048]
[1617561969087,0.00207397,58018.0,58017.0,2.8597]
[1617561969288,0.00207512,58021.0,58017.0,4.93556291]
[1617561969687,0.00207512,58021.0,58018.0,1.2]
[1617561969890,0.0020758,58022.0,58020.0,0.36263487]
[1617561970088,0.0020758,58022.0,58021.0,1.0]
[1617561970289,0.00207584,58023.0,58021.0,1.43334745]
[1617561970489,0.00207584,58023.0,58022.0,0.10725655]
[1617561970690,0.00207584,58023.0,58022.0,0.30725655]
[1617561970891,0.00504621,58023.0,58022.0,1.00091192]
[1617561971089,0.00504621,58023.0,58022.0,0.89365537]
[1617561971289,0.00999347,58024.0,58022.0,1.33723422]
[1617561971290,0.00504647,58024.0,58022.0,1.33723422]
[1617561971689,0.0050462,58023.0,58022.0,1.33723422]
[1617561972092,0.00207524,58025.0,58022.0,0.47]
[1617561972490,0.10933179,58025.0,58024.0,0.10725655]
[1617561972689,0.10725655,58025.0,58024.0,0.10725655]
[1617561972890,0.10933201,58025.0,58024.0,0.80043377]
[1617561973592,0.10933201,58025.0,58024.0,0.73971541]
[1617561973993,0.10933201,58025.0,58024.0,0.80043399]
[1617561974293,0.11229771,58025.0,58024.0,0.43797513]
[1617561975597,0.11723643,58025.0,58024.0,0.37725655]
[1617561975999,0.11229635,58025.0,58024.0,0.37725655]
[1617561976799,0.10725655,58025.0,58024.0,0.73971177]
[1617561979705,0.10933236,58025.0,58024.0,0.73971177]
[1617561982010,0.10933236,58025.0,58024.0,0.37725655]
[1617561982809,0.10933236,58025.0,58024.0,0.57725655]
[1617561983011,0.10725655,58025.0,58024.0,0.57725655]
[1617561983610,0.00207493,58026.0,58024.0,0.57725655]
[1617561983809,0.00503911,58027.0,58024.0,0.57725655]
[1617561983810,0.0020754,58027.0,58024.0,0.93953495]
[1617561984211,0.00207605,58028.0,58027.0,0.2]
[1617561984410,0.00207605,58028.0,58027.0,3.3387]
[1617561984611,0.00207625,58029.0,58027.0,4.08203371]
[1617561984811,0.00207625,58029.0,58028.0,1.2]
[1617561985211,0.00998576,58032.0,58028.0,1.2]
[1617561985212,0.00207686,58031.0,58028.0,0.89297702]
[1617561985811,0.00504427,58033.0,58029.0,0.622972]
[1617561986112,0.00207726,58032.0,58030.0,0.36226036]
[1617561986312,0.00207726,58032.0,58031.0,0.2]
[1617561986512,0.00207726,58032.0,58031.0,0.26071417]
[1617561986712,0.00207726,58032.0,58031.0,0.63797072]
[1617561987212,0.00207726,58032.0,58031.0,0.57725655]
[1617561987413,0.00998611,58032.0,58031.0,0.57725655]
[1617561988313,0.00504307,58032.0,58031.0,0.57725655]
[1617561989214,0.00207706,58032.0,58031.0,0.57725655]
[1617561990116,0.00207749,58033.0,58031.0,0.57725655]
[1617561990719,0.00207749,58033.0,58032.0,0.06071151]
[1617561991116,0.00207749,58033.0,58032.0,0.53071151]
[1617561991716,0.00207802,58034.0,58032.0,1.53071151]
[1617561992118,0.00207802,58034.0,58033.0,0.06071169]
[1617561992418,0.00207655,58035.0,58032.0,0.47]
[1617561992618,0.00207655,58035.0,58034.0,0.2]
[1617561992818,0.00207655,58035.0,58034.0,1.2]
[1617561993018,0.00207655,58035.0,58034.0,1.21]
[1617561993221,0.00207691,58036.0,58034.0,1.21]
[1617561993519,0.00207664,58035.0,58034.0,1.21]
[1617561993720,0.00207664,58035.0,58034.0,0.21]
[1617561993921,0.00207664,58035.0,58034.0,0.01]
[1617561994321,0.00207664,58035.0,58033.0,0.27]
[1617561994522,0.00207664,58035.0,58031.0,0.10725655]
[1617561994523,0.00504327,58036.0,58032.0,1.26]
[1617561994724,0.00504327,58036.0,58034.0,0.02]
[1617561994923,0.00504327,58036.0,58033.0,1.2]
[1617561995123,0.00207546,58035.0,58033.0,0.47]
[1617561995322,0.00207546,58035.0,58034.0,1.02]
[1617561995523,0.00207597,58036.0,58034.0,1.02]
[1617561995922,0.10933282,58037.0,58034.0,1.02]
[1617561996123,0.10933282,58037.0,58034.0,0.02]
[1617561996525,0.00207609,58036.0,58034.0,0.02]
[1617561997125,0.00207609,58036.0,58032.0,0.27]
[1617561997327,0.00504104,58035.0,58032.0,0.27]
[1617561997525,0.00504104,58035.0,58031.0,0.10725655]
[1617561997726,0.00207565,58034.0,58031.0,0.10725655]
[1617561997927,0.00207565,58034.0,58033.0,0.27]
[1617561998127,0.00207565,58034.0,58032.0,0.27]
[1617561998329,0.00207565,58034.0,58031.0,0.10725655]
[1617561998527,0.00207565,58034.0,58033.0,0.27]
[1617561998728,0.00207565,58034.0,58032.0,0.27]
[1617561999130,0.00504431,58034.0,58033.0,0.27]
[1617561999329,3.05314431,58034.0,58032.0,0.27]
[1617561999730,3.05314431,58034.0,58031.0,0.10725655]
[1617561999731,3.19713331,58034.0,58033.0,0.27]
[1617561999928,3.19713331,58034.0,58032.0,0.27]
[1617562000130,3.48399397,58034.0,58032.0,0.27]
[1617562000529,0.29688128,58033.0,58032.0,0.27]
[1617562003831,3.05314257,58034.0,58032.0,0.27]
[1617562004031,3.05314257,58034.0,58032.0,0.37877]
[1617562004233,3.0481,58034.0,58032.0,0.37877]
[1617562006737,3.0481,58034.0,58033.0,0.2]
[1617562007135,3.0481,58034.0,58033.0,0.47]
[1617562007735,0.10933583,58037.0,58033.0,0.47]